bitfinex/quotes_SOLUSD_20250717
["timestamp","ask_amount","ask_price","bid_price","bid_amount"]
[1752762672381,6.939244,174.65,174.64,26.0]
[1752762672577,6.939244,174.65,174.63,0.03]
[1752762672869,7.51221139,174.64,174.63,0.03]
[1752762673075,30.0229604,174.64,174.63,0.03]
[1752762673299,31.5285604,174.64,174.63,0.03]
[1752762674768,0.57296739,174.64,174.63,0.03]
[1752762674975,6.269244,174.64,174.63,0.03]
[1752762675281,6.269244,174.64,174.63,26.03]
[1752762675781,7.02861301,174.66,174.64,26.0]
[1752762675983,6.269244,174.65,174.64,26.0]
[1752762676787,6.269244,174.65,174.63,30.13]
[1752762677093,6.269244,174.65,174.64,0.71]
[1752762677265,6.269244,174.65,174.63,56.13]
[1752762677464,6.269244,174.64,174.63,56.13]
[1752762677779,6.939244,174.64,174.63,0.03]
[1752762678664,6.269244,174.64,174.63,0.03]
[1752762678865,23.72392797,174.64,174.63,0.03]
[1752762679069,29.44999301,174.64,174.63,0.03]
[1752762680198,1.5771,174.62,174.57,30.13]
[1752762680394,6.269244,174.58,174.57,0.03]
[1752762680599,6.84221139,174.58,174.57,0.03]
[1752762680810,1.24296739,174.58,174.57,0.03]
[1752762681098,12.57024438,174.58,174.57,0.03]
[1752762681399,6.97100038,174.58,174.57,0.03]
[1752762681585,13.24024438,174.58,174.57,0.03]
[1752762682278,0.57296739,174.59,174.57,0.03]
[1752762682479,6.269244,174.58,174.57,0.03]
[1752762682895,6.939244,174.58,174.57,0.03]
[1752762683207,12.66727699,174.58,174.57,0.03]
[1752762683595,13.24024438,174.58,174.57,0.03]
[1752762685091,14.31762212,174.61,174.57,0.03]
[1752762685092,6.30089914,174.59,174.57,0.03]
[1752762685276,11.99727699,174.58,174.57,0.03]
[1752762685872,12.66727699,174.58,174.57,0.03]
[1752762687794,6.269244,174.58,174.57,0.03]
[1752762688181,6.269244,174.59,174.57,26.74]
[1752762688391,6.269244,174.6,174.58,26.71]
[1752762688689,4.45562835,174.6,174.59,0.71]
[1752762688897,6.29980428,174.62,174.59,26.0]
[1752762689114,6.269244,174.6,174.59,26.71]
[1752762689291,6.269244,174.6,174.59,26.0]
[1752762690816,0.57296739,174.64,174.6,26.0]
[1752762690817,1.24296739,174.64,174.6,26.0]
[1752762691117,6.269244,174.61,174.6,26.71]
[1752762691314,6.269244,174.62,174.6,26.71]
[1752762691610,6.269244,174.63,174.61,26.68]
[1752762691795,6.269244,174.64,174.63,26.0]
[1752762692119,6.35880948,174.65,174.63,26.68]
[1752762692295,6.35880948,174.65,174.63,26.0]
[1752762692296,0.63296739,174.65,174.63,26.0]
[1752762692499,6.329244,174.65,174.64,0.68]
[1752762692713,6.329244,174.65,174.63,26.68]
[1752762693209,7.52221139,174.64,174.63,26.0]
[1752762693423,6.269244,174.64,174.63,26.0]
[1752762694237,7.03878755,174.65,174.63,26.0]
[1752762694388,6.329244,174.65,174.63,26.68]
[1752762694589,0.06,174.65,174.63,26.68]
[1752762694889,0.06,174.65,174.64,0.68]
[1752762695289,6.329244,174.65,174.63,26.0]
[1752762695500,6.84221139,174.64,174.59,0.68]
[1752762695678,6.269244,174.62,174.6,30.1]
[1752762695884,1.25296739,174.64,174.63,26.0]
[1752762696113,6.84221139,174.64,174.63,26.0]
[1752762696310,6.84221139,174.64,174.58,26.0]
[1752762696311,5.72639294,174.63,174.58,26.0]
[1752762696511,6.269244,174.6,174.58,26.0]
[1752762696683,6.269244,174.6,174.57,30.13]
[1752762696885,6.269244,174.59,174.57,30.13]
[1752762697083,6.949244,174.58,174.57,0.03]
[1752762697586,7.52221139,174.58,174.57,0.03]
[1752762698216,0.57296739,174.58,174.57,0.03]
[1752762698388,12.57024438,174.58,174.57,0.03]
[1752762700139,6.269244,174.58,174.57,0.71]
[1752762700492,6.30056306,174.6,174.57,0.71]
[1752762700690,6.269244,174.58,174.57,0.03]
[1752762700986,6.269244,174.58,174.57,26.03]
[1752762701600,6.949244,174.58,174.57,26.03]
[1752762701818,6.269244,174.58,174.57,0.03]
[1752762702348,13.25024438,174.58,174.57,0.03]
[1752762702919,13.25024438,174.58,174.57,26.03]
[1752762703540,13.25024438,174.58,174.57,0.03]
[1752762705345,12.57024438,174.58,174.57,0.03]
[1752762707743,13.25024438,174.58,174.57,0.03]
[1752762708742,5.72779654,174.59,174.57,0.71]
[1752762709048,6.269244,174.58,174.57,0.71]
[1752762709556,6.269244,174.58,174.57,0.03]
[1752762711538,5.7278258,174.59,174.57,0.03]
[1752762711852,6.269244,174.58,174.57,0.71]
[1752762712347,6.269244,174.58,174.57,0.03]
[1752762712541,6.949244,174.58,174.57,0.03]
[1752762713352,6.30079319,174.59,174.57,0.03]
[1752762713548,11.99727699,174.58,174.57,0.03]
[1752762714261,12.57024438,174.58,174.57,0.03]
[1752762714452,6.30100038,174.58,174.57,0.03]
[1752762714633,12.57024438,174.58,174.57,0.03]
[1752762714954,13.25024438,174.58,174.57,0.03]
[1752762715159,30.03492835,174.58,174.57,0.03]
[1752762715837,6.269244,174.52,174.51,0.03]
[1752762716833,11.99924629,174.52,174.51,0.03]
[1752762718442,12.67924629,174.52,174.51,0.03]
[1752762718642,12.67924629,174.52,174.5,0.03]
[1752762718843,30.57613936,174.51,174.5,0.03]
[1752762719257,18.03765136,174.51,174.5,0.03]
[1752762719458,24.30689536,174.51,174.5,0.03]
[1752762719761,7.52221139,174.51,174.5,0.03]
[1752762720261,13.25254203,174.51,174.5,0.03]
[1752762720950,12.57254203,174.51,174.5,0.03]
[1752762721148,6.84221139,174.51,174.5,0.03]
[1752762721346,14.32144409,174.57,174.5,0.03]
[1752762721347,0.57296739,174.55,174.5,0.69]
[1752762721565,12.57131438,174.55,174.52,26.0]
[1752762721869,6.84221139,174.58,174.55,26.0]
[1752762722245,12.57027236,174.58,174.56,0.66]
[1752762722443,6.269244,174.57,174.55,26.66]
[1752762723763,6.269244,174.57,174.55,26.0]
[1752762724068,7.54221139,174.56,174.55,26.0]
[1752762725733,13.27090066,174.56,174.55,26.0]
[1752762725934,12.57090066,174.56,174.55,26.0]
[1752762727352,13.27090066,174.56,174.55,26.0]
[1752762727951,12.57090066,174.56,174.55,26.0]
[1752762728341,13.27090066,174.56,174.55,26.0]
[1752762728962,27.59262384,174.56,174.52,30.1]
[1752762729165,6.269244,174.53,174.52,26.0]
[1752762729348,0.57296739,174.54,174.52,26.0]
[1752762729660,6.269244,174.53,174.52,26.0]
[1752762729865,0.57296739,174.54,174.52,26.0]
[1752762729866,0.57296739,174.54,174.52,26.66]
[1752762730047,6.269244,174.54,174.52,26.66]
[1752762730447,6.269244,174.53,174.52,26.66]
[1752762730655,6.269244,174.54,174.52,26.66]
[1752762730851,6.269244,174.54,174.53,0.66]
[1752762731090,6.269244,174.58,174.56,26.0]
[1752762731249,6.269244,174.58,174.57,0.66]
[1752762731563,6.269244,174.58,174.56,26.0]
[1752762731768,6.269244,174.58,174.56,26.66]
[1752762731960,6.30034425,174.6,174.56,26.66]
[1752762732273,6.269244,174.58,174.57,0.66]
[1752762733151,33.08358928,174.64,174.6,26.0]
[1752762733152,6.329244,174.63,174.6,26.0]
[1752762733355,6.329244,174.63,174.61,0.66]
[1752762733560,0.06,174.63,174.62,0.66]
[1752762734884,0.06,174.63,174.61,56.1]
[1752762735186,0.06,174.63,174.62,0.66]
[1752762736254,0.06,174.63,174.62,6.929244]
[1752762736949,0.06,174.63,174.62,0.66]
[1752762737472,10.07007337,174.65,174.64,26.0]
[1752762737879,0.06,174.65,174.64,26.66]
[1752762738063,0.06,174.65,174.64,56.74]
[1752762738255,0.06,174.65,174.64,30.74]
[1752762738453,0.06,174.65,174.64,56.74]
[1752762738669,0.06,174.65,174.64,30.74]
[1752762739073,0.06,174.65,174.64,30.08]
[1752762739298,0.06,174.65,174.64,30.74]
[1752762739975,0.06,174.65,174.64,30.08]
[1752762740779,0.06,174.65,174.64,30.74]
[1752762741263,0.06,174.65,174.64,30.08]
[1752762742387,0.06,174.65,174.64,30.74]
[1752762742584,0.06,174.65,174.64,40.75007337]
[1752762743296,0.06,174.65,174.64,30.74]
[1752762743629,0.06,174.65,174.64,40.75007337]
[1752762743766,0.06,174.65,174.64,56.74]
[1752762744075,0.06,174.65,174.64,30.74]
[1752762744280,0.06,174.65,174.64,57.53475734]
[1752762744880,0.06,174.65,174.64,58.10736384]
[1752762745757,0.06,174.65,174.64,70.03632888]
[1752762746255,0.06,174.66,174.65,18.43528397]
[1752762746458,0.06,174.66,174.65,34.83109452]
[1752762749491,0.06,174.66,174.65,40.26635899]
[1752762749877,0.1,174.69,174.68,42.78468397]
[1752762750195,0.1,174.69,174.68,83.42723272]
[1752762750396,0.1,174.69,174.68,84.08723272]
[1752762750898,0.1,174.69,174.68,89.81198655]
[1752762752984,0.1,174.69,174.68,84.08723272]
[1752762753187,0.1,174.69,174.68,89.81198655]
[1752762755884,0.1,174.69,174.68,84.08723272]
[1752762756507,0.1,174.69,174.68,89.81198655]
[1752762757103,0.1,174.69,174.68,44.01715935]
[1752762757404,0.1,174.69,174.68,83.40723272]
[1752762757586,0.1,174.69,174.68,74.04715935]
[1752762757786,0.1,174.69,174.68,30.04]
[1752762758482,0.1,174.69,174.68,40.05007337]
[1752762758678,0.1,174.69,174.68,40.70007337]
[1752762758882,0.1,174.69,174.68,10.66007337]
[1752762759083,0.1,174.69,174.68,30.69]
[1752762759287,0.1,174.69,174.68,36.94108213]
[1752762759498,0.1,174.69,174.68,30.69]
[1752762759807,0.1,174.69,174.68,36.94108213]
[1752762759984,0.1,174.69,174.68,36.29108213]
[1752762760302,0.1,174.69,174.68,36.94108213]
[1752762761277,0.1,174.69,174.68,30.04]
[1752762761493,0.8,174.69,174.68,30.04]
[1752762761889,0.1,174.69,174.68,30.04]
[1752762762409,0.1,174.69,174.68,37.51355751]
[1752762762607,0.1,174.69,174.68,54.29824148]
[1752762762786,0.1,174.69,174.68,71.70934191]
[1752762762988,0.1,174.69,174.68,65.45825978]
[1752762766609,0.1,174.69,174.68,54.29824148]
[1752762767200,0.1,174.69,174.68,60.02299531]
[1752762768310,0.1,174.69,174.68,66.27407744]
[1752762769620,0.06,174.7,174.68,66.27407744]
[1752762769621,0.06,174.7,174.69,16.78468397]
[1752762769808,0.06,174.72,174.71,49.0357661]
[1752762770011,0.06,174.72,174.71,79.64814318]
[1752762770206,0.06,174.72,174.71,86.021914]
[1752762770695,0.06,174.73,174.72,16.78468397]
[1752762770895,0.06,174.76,174.75,42.78468397]
[1752762771095,0.06,174.76,174.75,79.62801216]
[1752762771319,0.06,174.76,174.75,80.27801216]
[1752762772414,0.06,174.76,174.75,79.62801216]
[1752762774023,0.06,174.76,174.75,86.00047281]
[1752762777321,0.1,174.79,174.75,86.00047281]
[1752762777521,0.1,174.79,174.78,49.0357661]
[1752762777724,0.1,174.79,174.78,79.62791394]
[1752762778424,0.1,174.79,174.78,85.99939237]
[1752762778929,0.1,174.79,174.78,80.27791394]
[1752762779305,0.1,174.79,174.78,85.99939237]
[1752762781023,0.1,174.79,174.78,92.2504745]
[1752762781227,1.6249,174.88,174.86,26.0]
[1752762781228,2.3249,174.88,174.86,26.0]
[1752762781400,2.3249,174.88,174.87,30.02]
[1752762781599,7.9203,174.93,174.9,26.0]
[1752762781813,7.9203,174.93,174.89,26.0]
[1752762781814,1.6005,174.97,174.94,26.0]
[1752762782043,2.2905,174.97,174.95,56.0]
[1752762782231,0.69,174.96,174.95,56.0]
[1752762782733,12.65667426,174.96,174.94,0.57162455]
[1752762783055,0.69,174.96,174.94,56.0]
[1752762783223,0.69,174.96,174.94,30.0]
[1752762783408,1.6005,174.97,174.96,26.0]
[1752762783603,1.6005,174.97,174.96,30.0]
[1752762783810,2.2905,174.97,174.96,56.0]
[1752762784106,8.00576547,174.97,174.93,0.57165723]
[1752762784304,0.69,174.96,174.93,26.0]
[1752762784603,6.25108213,174.94,174.93,26.0]
[1752762784806,6.94108213,174.94,174.9,30.18]
[1752762785006,9.98257306,174.91,174.85,9.98257306]
[1752762785308,9.98257306,174.91,174.83,0.66]
[1752762785309,0.59,174.92,174.86,40.20257306]
[1752762785525,5.71591883,174.95,174.88,9.98257306]
[1752762785850,1.6005,174.97,174.94,9.98257306]
[1752762786151,0.59,174.96,174.91,0.5717226]
[1752762786455,0.59,174.96,174.93,9.98257306]
[1752762786616,1.6005,174.97,174.94,30.3]
[1752762786948,0.59,174.96,174.93,26.0]
[1752762787126,0.59,174.96,174.94,30.3]
[1752762787656,9.98257306,174.96,174.95,30.3]
[1752762788213,0.59,174.96,174.95,26.0]
[1752762788446,6.30559213,174.96,174.95,26.0]
[1752762788679,16.28816519,174.96,174.95,26.0]
[1752762790220,6.30559213,174.96,174.95,26.0]
[1752762790439,16.28816519,174.96,174.95,26.0]
[1752762790640,16.28816519,174.96,174.91,26.0]
[1752762790844,1.16296739,174.95,174.92,30.32]
[1752762791017,0.59,174.94,174.9,30.32]
[1752762791221,0.59,174.93,174.92,26.0]
[1752762791842,11.15011291,174.96,174.93,26.0]
[1752762792214,9.98257306,174.94,174.93,26.0]
[1752762792935,9.98257306,174.94,174.9,30.32]
[1752762792936,15.69881862,174.94,174.9,30.32]
[1752762793129,5.71624556,174.94,174.9,30.32]
[1752762793331,9.98257306,174.93,174.92,26.0]
[1752762793542,5.71624556,174.94,174.92,26.0]
[1752762793746,9.98257306,174.93,174.92,26.0]
[1752762793928,15.69881862,174.94,174.93,26.0]
[1752762794125,5.71624556,174.94,174.93,26.0]
[1752762794332,15.69881862,174.94,174.93,26.0]
[1752762794559,5.71624556,174.94,174.92,56.32]
[1752762795462,5.71559213,174.96,174.92,56.32]
[1752762795752,9.98257306,174.95,174.94,26.0]
[1752762796188,5.71559213,174.96,174.94,26.0]
[1752762796330,5.71559213,174.96,174.95,26.0]
[1752762797057,15.69816519,174.96,174.95,26.0]
[1752762797265,5.71559213,174.96,174.95,26.0]
[1752762797432,15.69816519,174.96,174.95,26.0]
[1752762797627,5.71559213,174.96,174.95,26.0]
[1752762797834,15.69816519,174.96,174.95,26.0]
[1752762798552,15.69816519,174.96,174.94,30.34]
[1752762798754,5.71559213,174.96,174.94,30.34]
[1752762798925,16.30237306,174.98,174.93,9.98257306]
[1752762799129,15.69743377,174.99,174.97,26.0]
[1752762799330,9.98257306,174.98,174.97,26.0]
[1752762799532,5.71486071,174.99,174.98,26.0]
[1752762799943,15.69743377,174.99,174.98,26.0]
[1752762800150,1.5394,175.01,174.98,26.0]
[1752762800362,0.06,175.03,175.0,26.0]
[1752762800539,10.04257306,175.03,174.99,57.06]
[1752762800862,0.06,175.03,175.02,26.0]
[1752762801565,0.06,175.03,175.02,1.23136327]
[1752762802062,0.06,175.03,175.02,30.54]
[1752762802361,0.06,175.03,175.02,56.56]
[1752762802534,0.06,175.03,175.02,26.0]
[1752762802736,10.04257306,175.03,175.02,26.0]
[1752762803245,0.06,175.03,175.02,57.22]
[1752762803646,0.06,175.03,175.02,56.56]
[1752762804364,0.06,175.03,175.02,41.20257306]
[1752762804584,9.47505241,175.13,175.02,57.98725703]
[1752762804862,5.71037003,175.12,175.05,26.0]
[1752762805043,9.98257306,175.09,175.08,26.0]
[1752762805238,10.04257306,175.09,175.08,26.0]
[1752762805947,20.0462951,175.12,175.08,26.0]
[1752762806142,5.71037003,175.12,175.09,26.0]
[1752762806350,5.71007922,175.13,175.12,26.0]
[1752762806547,5.71007922,175.13,175.1,26.0]
[1752762806757,9.98257306,175.11,175.04,1.23129798]
[1752762806952,0.06,175.12,175.07,26.0]
[1752762807158,5.71007922,175.13,175.08,31.0]
[1752762807362,5.71007922,175.13,175.08,31.66]
[1752762807563,9.98257306,175.12,175.09,0.66]
[1752762807768,9.98257306,175.12,175.1,31.0]
[1752762807970,5.71007922,175.13,175.1,31.0]
[1752762808477,9.98257306,175.11,175.1,31.0]
[1752762808644,5.77007922,175.13,175.1,31.0]
[1752762808974,5.71007922,175.13,175.1,31.0]
[1752762809477,15.69265228,175.13,175.1,31.66]
[1752762809649,5.71007922,175.13,175.1,31.0]
[1752762809845,9.98257306,175.12,175.1,31.0]
[1752762810353,5.71007922,175.13,175.1,31.0]
[1752762810558,9.98257306,175.12,175.1,31.0]
[1752762810775,5.71007922,175.13,175.1,31.0]
[1752762811075,9.98257306,175.11,175.09,26.0]
[1752762811381,5.71007922,175.13,175.09,31.8]
[1752762811549,9.98257306,175.12,175.09,31.8]
[1752762811748,5.71007922,175.13,175.09,31.8]
[1752762811947,9.98257306,175.12,175.09,31.8]
[1752762812148,5.71007922,175.13,175.1,0.68]
[1752762812344,5.80979451,175.14,175.11,31.78]
[1752762812567,15.29236757,175.14,175.12,31.1]
[1752762812771,15.29236757,175.14,175.12,31.78]
[1752762812966,9.98257306,175.13,175.12,31.1]
[1752762813861,9.98257306,175.13,175.08,26.68]
[1752762814063,0.06,175.15,175.09,31.78]
[1752762814375,9.98257306,175.1,175.03,1.5746]
[1752762814675,0.06,175.12,175.04,31.76]
[1752762814841,0.06,175.12,175.07,26.0]
[1752762815176,0.06,175.12,175.07,57.08]
[1752762815370,9.98257306,175.08,175.07,57.08]
[1752762815943,0.06,175.12,175.07,57.08]
[1752762816144,9.98257306,175.08,175.07,26.0]
[1752762816348,0.06,175.12,175.07,31.06]
[1752762816565,9.98257306,175.08,175.07,31.06]
[1752762817669,9.98257306,175.08,175.02,0.68]
[1752762817846,9.98257306,175.03,175.0,0.68]
[1752762818053,0.06,175.08,175.01,57.74]
[1752762818276,9.98257306,175.04,175.03,26.0]
[1752762818457,9.98257306,175.06,175.03,26.68]
[1752762818654,9.98257306,175.06,175.04,31.74]
[1752762818972,9.98257306,175.05,175.01,0.68]
[1752762819146,9.98257306,175.04,175.02,31.06]
[1752762819343,9.98257306,175.05,175.03,0.68]
[1752762819580,15.69546417,175.05,175.03,0.68]
[1752762819872,9.98257306,175.05,175.03,0.68]
[1752762820057,5.71167466,175.08,175.05,26.0]
[1752762820372,9.98257306,175.06,175.05,57.04]
[1752762821067,9.98257306,175.06,175.05,31.04]
[1752762821971,9.98257306,175.09,175.05,31.68]
[1752762822177,9.98257306,175.09,175.06,0.68]
[1752762822383,9.98257306,175.09,175.07,0.68]
[1752762822868,9.98257306,175.08,175.05,31.68]
[1752762823073,9.98257306,175.08,175.06,0.68]
[1752762823450,5.71069613,175.11,175.07,0.68]
[1752762823663,5.71037003,175.12,175.08,30.98]
[1752762823865,9.98257306,175.09,175.08,30.98]
[1752762824777,0.06,175.11,175.06,30.98]
[1752762824964,9.98257306,175.07,175.06,30.98]
[1752762825577,15.69457397,175.07,175.06,30.98]
[1752762825782,15.69457397,175.07,175.04,31.0]
[1752762825968,15.69457397,175.07,175.05,0.68]
[1752762826163,5.71200091,175.07,175.03,0.68]
[1752762826368,9.98257306,175.06,175.05,30.98]
[1752762827077,5.7123272,175.06,175.02,26.0]
[1752762827283,15.69490026,175.06,175.03,31.66]
[1752762827486,15.69490026,175.06,175.04,0.68]
[1752762827778,9.98257306,175.12,175.05,37.23383841]
[1752762827978,7.30224008,175.17,175.09,9.98257306]
[1752762828192,9.98257306,175.15,175.1,41.64257306]
[1752762828400,7.30224008,175.17,175.11,0.68]
[1752762828587,9.98257306,175.12,175.1,30.98]
[1752762829051,14.33439864,175.14,175.1,30.96]
[1752762829252,9.98257306,175.11,175.1,30.96]
[1752762829478,5.71004396,175.13,175.1,30.96]
[1752762829677,9.98257306,175.11,175.1,30.96]
[1752762829867,5.71004396,175.13,175.1,30.96]
[1752762830258,9.98257306,175.12,175.1,30.96]
[1752762830466,9.98257306,175.11,175.1,30.96]
[1752762831581,9.98257306,175.12,175.1,30.96]
[1752762831770,5.70906599,175.16,175.11,0.68]
[1752762831977,9.98257306,175.13,175.1,30.96]
[1752762832178,9.98257306,175.13,175.1,31.64]
[1752762832558,20.04173098,175.16,175.1,31.64]
[1752762832858,9.98257306,175.13,175.1,31.64]
[1752762833058,15.69298861,175.12,175.1,30.96]
[1752762833580,5.71041555,175.12,175.06,0.68]
[1752762833754,9.98257306,175.08,175.04,0.68]
[1752762833960,0.06,175.11,175.05,30.88]
[1752762834161,9.98257306,175.08,175.05,30.88]
[1752762834587,9.98257306,175.08,175.06,0.68]
[1752762834802,19.98634062,175.12,175.06,0.68]
[1752762834992,9.98257306,175.07,175.06,0.68]
[1752762835461,5.71161912,175.09,175.06,0.68]
[1752762835661,9.98257306,175.07,175.06,0.68]
[1752762836069,9.98257306,175.07,175.05,30.88]
[1752762836687,9.98257306,175.06,175.05,30.88]
[1752762837103,9.98257306,175.06,175.02,26.68]
[1752762837290,9.98257306,175.05,175.03,31.54]
[1752762837468,5.71167466,175.08,175.04,0.68]
[1752762837469,9.98257306,175.06,175.04,0.68]
[1752762837665,9.98257306,175.06,175.05,0.68]
[1752762837866,9.98257306,175.06,175.03,30.86]
[1752762838074,9.98257306,175.06,175.04,0.68]
[1752762838276,9.98257306,175.06,175.05,0.68]
[1752762838616,9.98257306,175.06,175.03,31.54]
[1752762838778,9.98257306,175.05,175.03,31.54]
[1752762839365,9.98257306,175.05,175.04,0.68]
[1752762839773,9.98257306,175.05,175.03,30.86]
[1752762840093,9.98257306,175.04,175.03,30.86]
[1752762840481,19.98971956,175.09,175.03,31.54]
[1752762840692,9.98257306,175.09,175.04,11.23387104]
[1752762840867,9.98257306,175.09,175.05,0.68]
[1752762841068,5.71112725,175.1,175.06,30.82]
[1752762841277,5.71037003,175.12,175.07,0.68]
[1752762841498,9.98257306,175.08,175.06,30.82]
[1752762841967,5.71037003,175.12,175.07,0.68]
[1752762842306,9.98257306,175.11,175.07,0.68]
[1752762842465,9.98257306,175.1,175.08,0.68]
[1752762842671,9.98257306,175.09,175.08,0.68]
[1752762842873,9.98257306,175.09,175.06,30.82]
[1752762843099,5.71004417,175.13,175.07,11.23377315]
[1752762843305,5.71071065,175.11,175.08,0.68]
[1752762843477,5.71071065,175.11,175.09,0.68]
[1752762843478,15.69328371,175.11,175.09,0.68]
[1752762843694,9.98257306,175.1,175.08,31.54]
[1752762843881,9.98257306,175.09,175.08,31.54]
[1752762844269,9.98257306,175.09,175.08,30.86]
[1752762844883,9.98257306,175.09,175.04,0.68]
[1752762845091,5.77071065,175.11,175.05,30.84]
[1752762845295,9.98257306,175.06,175.05,30.84]
[1752762845601,15.69396689,175.09,175.05,31.52]
[1752762845800,9.98257306,175.13,175.08,26.0]
[1752762846098,9.98257306,175.12,175.09,31.52]
[1752762846296,9.98257306,175.12,175.09,30.84]
[1752762846498,9.98257306,175.12,175.1,0.68]
[1752762846691,9.98257306,175.13,175.11,0.68]
[1752762846872,10.04257306,175.14,175.11,0.68]
[1752762847077,10.04257306,175.14,175.12,30.82]
[1752762847295,10.04257306,175.14,175.13,0.68]
[1752762847490,0.06,175.14,175.13,0.68]
[1752762847701,10.04257306,175.14,175.13,0.68]
[1752762847999,0.06,175.14,175.13,0.68]
[1752762848200,10.04257306,175.14,175.12,30.82]
[1752762848407,9.98257306,175.13,175.12,30.82]
[1752762848724,10.04257306,175.14,175.12,31.5]
[1752762848894,10.04257306,175.14,175.13,0.68]
[1752762849104,0.06,175.14,175.13,0.68]
[1752762849274,10.04257306,175.14,175.13,0.68]
[1752762849873,10.04257306,175.14,175.12,30.82]
[1752762850081,10.04257306,175.14,175.12,31.5]
[1752762851001,0.06,175.14,175.13,10.66257306]
[1752762851208,0.06,175.14,175.13,1.25100439]
[1752762851577,0.06,175.14,175.13,31.46]
[1752762851994,10.04257306,175.14,175.11,26.68]
[1752762852300,9.98257306,175.12,175.1,30.76]
[1752762852502,9.98257306,175.11,175.1,30.76]
[1752762853087,0.06,175.14,175.1,30.76]
[1752762853410,9.98257306,175.11,175.1,30.76]
[1752762853712,15.69326919,175.11,175.07,30.74]
[1752762853896,9.98257306,175.08,175.07,30.74]
[1752762854393,9.98257306,175.08,175.04,30.76]
[1752762854600,9.98257306,175.05,175.02,31.46]
[1752762854906,9.98257306,175.04,175.02,30.78]
[1752762855088,9.98257306,175.04,175.02,31.46]
[1752762855499,9.98257306,175.03,175.02,30.78]
[1752762855680,15.69587935,175.03,175.02,30.78]
[1752762855884,5.71134844,175.09,175.02,31.46]
[1752762856107,9.98257306,175.08,175.04,26.0]
[1752762856309,9.98257306,175.09,175.05,32.03126535]
[1752762856513,5.71107534,175.1,175.06,0.68]
[1752762856682,9.98257306,175.09,175.05,31.35126535]
[1752762856883,9.98257306,175.09,175.07,0.68]
[1752762857095,9.98257306,175.09,175.08,0.68]
[1752762857525,5.71004396,175.13,175.08,31.48]
[1752762857813,5.71083573,175.11,175.09,0.68]
[1752762858020,5.71083573,175.11,175.1,0.68]
[1752762858196,1.7007,175.14,175.1,0.68]
[1752762858197,9.98257306,175.12,175.1,0.68]
[1752762858399,9.98257306,175.12,175.08,31.37116746]
[1752762858694,9.98257306,175.12,175.11,0.68]
[1752762858899,9.98257306,175.12,175.09,0.68]
[1752762859095,9.98257306,175.12,175.1,0.68]
[1752762859298,15.69294333,175.12,175.1,0.68]
[1752762859495,9.98257306,175.13,175.11,0.68]
[1752762859695,0.06,175.14,175.12,0.68]
[1752762860113,0.06,175.14,175.13,0.68]
[1752762860695,0.06,175.14,175.13,26.68]
[1752762861629,0.06,175.14,175.13,31.5]
[1752762862736,0.06,175.14,175.13,32.07100439]
[1752762862921,0.06,175.14,175.13,42.05357745]
[1752762863097,0.06,175.14,175.13,32.07100439]
[1752762863622,0.06,175.14,175.13,42.05357745]
[1752762863808,0.06,175.14,175.13,32.07100439]
[1752762864147,0.06,175.14,175.13,58.83826142]